fUSD/lending_fUSD_20240107
["ID","MTS","AMOUNT","RATE_DAILY","PERIOD"]
[310694644,1704647444600,-202743.01605483,0.0003,2]
[310694645,1704647444610,-292.146584,0.0003,7]
[310694646,1704647444620,-151.0,0.0003,7]
[310694647,1704647444635,-151.0,0.0003,7]
[310694648,1704647444659,-225.170273,0.0003,7]
[310694649,1704647444678,-245.287094,0.0003,7]
[310694650,1704647444699,-245.287094,0.0003,7]
[310694651,1704647444717,-245.287094,0.0003,7]
[310694652,1704647444736,-245.287094,0.0003,7]
[310694653,1704647444754,-151.0,0.0003,7]
[310694654,1704647444770,-151.0,0.0003,7]
[310694655,1704647444792,-268.633723,0.0003,7]
[310694656,1704647444810,-162.52356,0.0003,7]
[310694657,1704647444831,-151.0,0.0003,7]
[310694658,1704647444853,-151.0,0.0003,7]
[310694659,1704647444867,-320.01189,0.0003,7]
[310694660,1704647444883,-320.01189,0.0003,7]
[310694661,1704647444901,-320.01189,0.0003,7]
[310694662,1704647444914,-320.01189,0.0003,7]
[310694663,1704647444933,-12262.29609774,0.0003,2]
[310694664,1704647444948,-258.399193,0.0003,7]
[310694665,1704647444963,-258.399193,0.0003,7]
[310694666,1704647444978,-258.399193,0.0003,7]
[310694667,1704647444992,-258.399193,0.0003,7]
[310694668,1704647445006,-689.70324588,0.0003,2]
[310694669,1704647445021,-151.0,0.0003,7]
[310694670,1704647445036,-151.0,0.0003,7]
[310694671,1704647445051,-298.034588,0.0003,7]
[310694672,1704647445066,-2553.942338,0.0003,5]
[310694673,1704647445082,-151.0,0.0003,7]
[310694674,1704647445097,-151.0,0.0003,7]
[310694675,1704647445112,-203.0,0.0003,2]
[310694676,1704647445127,-226.8,0.0003,7]
[310694677,1704647445142,-226.8,0.0003,7]
[310694678,1704647445158,-226.8,0.0003,7]
[310694679,1704647445174,-226.8,0.0003,7]
[310694680,1704647445188,-393.146209,0.0003,7]
[310694681,1704647445204,-393.146209,0.0003,7]
[310694682,1704647445219,-393.146209,0.0003,7]
[310694683,1704647445234,-393.146209,0.0003,7]
[310694684,1704647445248,-210.414717,0.0003,7]
[310694685,1704647445263,-210.414717,0.0003,7]
[310694686,1704647445278,-210.414717,0.0003,7]
[310694687,1704647445293,-210.414717,0.0003,7]
[310694688,1704647445308,-1000.0,0.0003,2]
[310694689,1704647445323,-1000.0,0.0003,2]
[310694690,1704647445338,-1500.0,0.00030017,2]
[310694691,1704647445353,-274.892,0.0003007,2]
[310694692,1704647445368,-686.487,0.0003007,2]
[310694693,1704647445382,-943.0,0.0003007,2]
[310694694,1704647445397,-1254.0,0.0003007,2]
[310694695,1704647445413,-1026.485,0.0003007,2]
[310694696,1704647445429,-991.0,0.0003007,2]
[310694697,1704647445444,-150.0,0.00030085,2]
[310694698,1704647445460,-150.0,0.00030092,2]
[310694699,1704647445474,-786.74073073,0.000301,2]
[310694700,1704647445490,-300.0,0.00030109,2]
[310694701,1704647445505,-732.73659301,0.00030109,4]
[310694702,1704647445520,-271.88,0.00030118,2]
[310694703,1704647445536,-10000.0,0.00030137,2]
[310694704,1704647445551,-153.84,0.00030137,2]
[310694705,1704647445566,-155.0,0.00030137,2]
[310694706,1704647445582,-425.0,0.00030167,5]
[310694707,1704647445599,-150.0,0.00030217,2]
[310694708,1704647445615,-150.0,0.00030268,2]
[310694709,1704647445632,-150.0,0.00030277,2]
[310694710,1704647445656,-150.0,0.00030323,2]
[310694711,1704647445674,-242.92012067,0.00030401,2]
[310694712,1704647445690,-150.0,0.00030424,2]
[310694713,1704647445705,-150.0,0.00030424,2]
[310694714,1704647445721,-150.0,0.00030436,2]
[310694715,1704647445737,-167.0,0.00030465,2]
[310694716,1704647445753,-150.0,0.00030483,2]
[310694717,1704647445768,-1000.0,0.000305,2]
[310694718,1704647445783,-1500.0,0.000305,5]
[310694719,1704647445799,-150.0,0.00030546,2]
[310694720,1704647445814,-1024.81,0.00030567,2]
[310694721,1704647445829,-300.0,0.00030574,2]
[310694722,1704647445847,-150.0,0.00030594,2]
[310694723,1704647445863,-300.0,0.00030597,2]
[310694724,1704647445879,-150.0,0.00030632,2]
[310694725,1704647445895,-150.0,0.0003064,2]
[310694726,1704647445910,-150.0,0.00030666,2]
[310694727,1704647445925,-150.0,0.00030689,2]
[310694728,1704647445940,-654.97121751,0.0003069,2]
[310694729,1704647445956,-11269.97481725,0.0003069,2]
[310694730,1704647445971,-3000.0,0.0003069,2]
[310694731,1704647445985,-150.0,0.00030705,2]
[310694732,1704647445999,-150.0,0.00030718,2]
[310694733,1704647446014,-1500.0,0.0003074,2]
[310694734,1704647446029,-150.0,0.00030742,2]
[310694735,1704647446043,-150.0,0.00030743,2]
[310694736,1704647446059,-300.0,0.00030745,2]
[310694737,1704647446074,-150.0,0.00030746,2]
[310694738,1704647446089,-150.0,0.00030752,2]
[310694739,1704647446104,-150.0,0.00030768,2]
[310694740,1704647446121,-150.0,0.00030768,2]
[310694742,1704647446136,-150.0,0.00030771,2]
[310694744,1704647446146,-1500.0,0.00030781,2]
[310694746,1704647446155,-150.0,0.00030781,2]
[310694747,1704647446165,-1500.0,0.000308,2]
[310694748,1704647446174,-2000.0,0.000308,2]
[310694749,1704647446184,-150.0,0.00030803,2]
[310694750,1704647446195,-150.0,0.00030808,2]
[310694751,1704647446204,-150.0,0.0003081,2]
[310694758,1704647446497,-150.0,0.00030812,2]
[310694759,1704647446523,-150.0,0.00030812,2]
[310694760,1704647446559,-150.0,0.00030819,2]
[310694761,1704647446569,-150.0,0.00030826,2]
[310694762,1704647446580,-1500.0,0.00030828,2]
[310694763,1704647446590,-150.0,0.00030829,2]
[310694764,1704647446601,-150.0,0.00030829,2]
[310694765,1704647446611,-150.0,0.00030832,2]
[310694766,1704647446622,-432.29,0.00030838,2]
[310694767,1704647446632,-150.0,0.00030838,2]
[310694768,1704647446643,-150.0,0.00030842,2]
[310694769,1704647446652,-150.0,0.00030845,2]
[310694770,1704647446662,-150.0,0.00030847,2]
[310694771,1704647446671,-150.0,0.00030848,2]
[310694772,1704647446681,-204.0,0.0003085,8]
[310694773,1704647446690,-150.0,0.00030851,2]
[310694774,1704647446699,-300.0,0.00030852,2]
[310694775,1704647446709,-150.0,0.00030855,2]
[310694776,1704647446719,-150.0,0.00030856,2]
[310694777,1704647446730,-150.0,0.00030862,2]
[310694778,1704647446740,-150.0,0.00030863,2]
[310694779,1704647446749,-150.0,0.00030866,2]
[310694780,1704647446761,-150.0,0.00030867,2]
[310694781,1704647446771,-150.0,0.00030871,2]
[310694782,1704647446781,-300.0,0.00030875,2]
[310694783,1704647446791,-1500.0,0.00030881,2]
[310694784,1704647446800,-150.0,0.00030884,2]
[310694785,1704647446810,-150.0,0.00030894,2]
[310694786,1704647446821,-2550.0,0.000309,2]
[310694787,1704647446830,-150.0,0.00030901,2]
[310694788,1704647446840,-1500.0,0.00030912,2]
[310694789,1704647446850,-150.0,0.00030916,2]
[310694790,1704647446859,-150.0,0.00030919,2]
[310694791,1704647446868,-150.0,0.00030919,2]
[310694792,1704647446878,-150.0,0.00030927,2]
[310694793,1704647446888,-9967.2178767,0.00030928,2]
[310694794,1704647446897,-150.0,0.0003093,2]
[310694795,1704647446907,-150.0,0.00030934,2]
[310694796,1704647446917,-150.0,0.00030935,2]
[310694797,1704647446926,-150.0,0.00030939,2]
[310694798,1704647446936,-150.0,0.00030944,2]
[310694799,1704647446945,-150.0,0.00030945,2]
[310694800,1704647446956,-150.0,0.00030946,2]
[310694801,1704647446965,-1500.0,0.0003095,2]
[310694802,1704647446975,-300.0,0.00030957,2]
[310694803,1704647446985,-150.0,0.0003096,2]
[310694804,1704647446994,-150.0,0.00030965,2]
[310694805,1704647447003,-766.29648679,0.00030968,2]
[310694806,1704647447014,-150.0,0.00030977,2]
[310694807,1704647447023,-150.0,0.00030977,2]
[310694808,1704647447032,-150.0,0.00030978,2]
[310694809,1704647447044,-150.0,0.00030978,2]
[310694810,1704647447054,-150.0,0.0003098,2]
[310694811,1704647447064,-150.0,0.00030981,2]
[310694812,1704647447073,-150.0,0.00030984,2]
[310694813,1704647447083,-150.0,0.00030993,2]
[310694814,1704647447094,-150.0,0.00030994,2]
[310694815,1704647447103,-694.13336697,0.00030998,4]
[310694816,1704647447112,-435.3903,0.00030998,4]
[310694817,1704647447122,-8777.94835675,0.00030998,4]
[310694818,1704647447132,-1118.96,0.00030999,2]
[310694819,1704647447141,-1118.96,0.00030999,2]
[310694820,1704647447151,-1118.96,0.00030999,2]
[310694821,1704647447161,-1118.96,0.00030999,2]
[310694822,1704647447171,-1118.96,0.00030999,2]
[310694823,1704647447181,-1118.96,0.00030999,2]
[310694824,1704647447192,-1118.96,0.00030999,2]
[310694825,1704647447201,-1118.96,0.00030999,2]
[310694826,1704647447210,-1118.96,0.00030999,2]
[310694827,1704647447219,-222.09741979,0.00030999,4]
[310694828,1704647447228,-1788.84483392,0.00030999,2]
[310694829,1704647447237,-200.0,0.00031,2]
[310694830,1704647447247,-1531.0,0.00031,2]
[310694831,1704647447257,-750.0,0.00031,3]
[310694832,1704647447266,-1120.0,0.00031,3]
[310694833,1704647447276,-3000.0,0.00031,2]
[310694834,1704647447286,-2000.0,0.00031,2]
[310694835,1704647447296,-200.0,0.00031,2]
[310694836,1704647447307,-814.6427,0.00031,3]
[310694837,1704647447317,-1500.0,0.00031,5]
[310694838,1704647447328,-7718.8230516,0.00031029,2]
[310694839,1704647447339,-153.84,0.0003105,2]
[310694840,1704647447349,-3000.0,0.0003108,2]
[310694841,1704647447359,-627.54,0.00031233,2]
[310694842,1704647447369,-407.44,0.00031253,2]
[310694843,1704647447379,-806.01,0.00031253,2]
[310694844,1704647447389,-500.0,0.0003126,2]
[310694845,1704647447399,-1062.51344054,0.00031298,2]
[310694846,1704647447408,-150.0,0.000313,2]
[310694847,1704647447418,-432.0,0.000313,2]
[310694848,1704647447427,-342.0,0.000313,2]
[310694849,1704647447437,-872.48238634,0.0003131,2]
[310694850,1704647447448,-200.0,0.0003131,2]
[310694851,1704647447457,-160.79524319,0.00031311,5]
[310694852,1704647447467,-500.0,0.00031361,2]
[310694853,1704647447477,-200.0,0.00031361,2]
[310694854,1704647447488,-492.0,0.00031388,3]
[310694855,1704647447497,-492.0,0.00031388,3]
[310694856,1704647447508,-800.0,0.00031404,5]
[310694857,1704647447517,-973.95555246,0.00031433,2]
[310694858,1704647447527,-500.0,0.000315,2]
[310694859,1704647447536,-500.0,0.000315,2]
[310694860,1704647447546,-500.0,0.000315,2]
[310694861,1704647447557,-275.5617,0.000315,2]
[310694862,1704647447568,-5000.0,0.000315,5]
[310694863,1704647447578,-155.0,0.00031507,2]
[310694864,1704647447590,-1118.96,0.00031528,2]
[310694865,1704647447600,-50000.0,0.00031529,7]
[310694866,1704647447612,-24060.41874473,0.00031529,7]
[310694867,1704647447622,-29869.07129388,0.00031529,7]
[310694868,1704647447632,-26990.83960819,0.00031529,7]
[310694869,1704647447641,-22972.30135729,0.00031529,7]
[310694870,1704647447652,-50000.0,0.00031529,7]
[310694871,1704647447661,-17855.05769286,0.00031529,7]
[310694872,1704647447671,-21467.14936878,0.00031529,7]
[310694873,1704647447681,-245.287094,0.00031529,7]
[310694874,1704647447692,-245.287094,0.00031529,7]
[310694875,1704647447701,-151.0,0.00031529,7]
[310694876,1704647447711,-320.01189,0.00031529,7]
[310694877,1704647447724,-320.01189,0.00031529,7]
[310694878,1704647447734,-258.399193,0.00031529,7]
[310694879,1704647447743,-258.399193,0.00031529,7]
[310694880,1704647447753,-151.0,0.00031529,7]
[310694881,1704647447763,-226.8,0.00031529,7]
[310694882,1704647447774,-226.8,0.00031529,7]
[310694883,1704647447784,-393.146209,0.00031529,7]
[310694884,1704647447793,-393.146209,0.00031529,7]
[310694885,1704647447804,-210.414717,0.00031529,7]
[310694886,1704647447815,-210.414717,0.00031529,7]
[310694887,1704647447825,-1024.81,0.00031545,2]
[310694888,1704647447834,-258.0,0.000316,120]
[310694889,1704647447846,-155.0,0.00031656,4]
[310694890,1704647447857,-501.20804318,0.00031656,4]
[310694891,1704647447867,-316.48783956,0.00031656,4]
[310694892,1704647447883,-207.00797767,0.00031656,4]
[310694893,1704647447901,-155.0,0.00031656,4]
[310694894,1704647447915,-293.1739942,0.00031656,4]
[310694895,1704647447924,-508.4144921,0.00031656,4]
[310694896,1704647447936,-295.76998894,0.00031656,4]
[310694897,1704647447946,-3013.3384091,0.00031656,2]
[310694898,1704647447956,-180.4550703,0.00031656,2]
[310694899,1704647447965,-9165.665039,0.00031678,2]
[310694900,1704647447975,-4364.3643773,0.00031678,2]
[310694901,1704647447985,-208.0,0.000317,2]
[310694902,1704647447995,-3000.0,0.0003171,2]
[310694903,1704647448004,-211.84091454,0.0003175,19]
[310694904,1704647448015,-245.287094,0.000318,7]
[310694905,1704647448024,-245.287094,0.000318,7]
[310694906,1704647448035,-151.0,0.000318,7]
[310694907,1704647448045,-2000.0,0.000318,2]
[310694908,1704647448054,-320.01189,0.000318,7]
[310694909,1704647448064,-320.01189,0.000318,7]
[310694910,1704647448074,-258.399193,0.000318,7]
[310694911,1704647448086,-258.399193,0.000318,7]
[310694912,1704647448097,-151.0,0.000318,7]
[310694913,1704647448107,-150.3094985,0.000319,2]
[310694914,1704647448117,-150.30949847,0.000319,2]
[310694915,1704647448127,-732.73659301,0.00031911,5]
[310694916,1704647448137,-940.0,0.00031916,2]
[310694917,1704647448146,-153.84,0.00031963,2]
[310694918,1704647448156,-100000.0,0.00032,2]
[310694919,1704647448166,-297.1247831,0.00032,4]
[310694920,1704647448176,-487.74738292,0.00032,4]
[310694921,1704647448185,-155.0,0.00032,2]
[310694922,1704647448194,-193.20152118,0.00032,4]
[310694923,1704647448203,-200.0,0.00032,2]
[310694924,1704647448213,-1000.0,0.00032,3]
[310694925,1704647448223,-3000.0,0.00032,2]
[310694926,1704647448233,-1000.0,0.00032,3]
[310694927,1704647448242,-3000.0,0.00032,2]
[310694928,1704647448251,-18722.92197523,0.00032,2]
[310694929,1704647448261,-500.0,0.00032,3]
[310694930,1704647448270,-1014.40836643,0.00032,2]
[310694931,1704647448279,-1014.40836643,0.00032,2]
[310694932,1704647448289,-1014.40836643,0.00032,2]
[310694933,1704647448299,-3000.0,0.0003201,2]
[310694934,1704647448310,-4112.115962,0.0003202,2]
[310694935,1704647448319,-293.55,0.00032054,2]
[310694936,1704647448330,-293.55,0.00032054,2]
[310694937,1704647448341,-293.55,0.00032054,2]
[310694938,1704647448351,-293.55,0.00032054,2]
[310694939,1704647448360,-293.55,0.00032054,2]
[310694940,1704647448370,-293.55,0.00032054,2]
[310694941,1704647448379,-293.55,0.00032054,2]
[310694942,1704647448390,-293.55,0.00032054,2]
[310694943,1704647448399,-293.55,0.00032054,2]
[310694944,1704647448410,-293.55,0.00032054,2]
[310694945,1704647448423,-293.55,0.00032054,2]
[310694946,1704647448434,-293.55,0.00032054,2]
[310694947,1704647448444,-293.55,0.00032054,2]
[310694948,1704647448455,-293.55,0.00032054,2]
[310694949,1704647448465,-204.0,0.00032064,10]
[310694950,1704647448475,-293.55,0.00032075,2]
[310694951,1704647448485,-293.55,0.00032075,2]
[310694952,1704647448495,-293.55,0.00032075,2]
[310694953,1704647448505,-293.55,0.00032075,2]
[310694954,1704647448516,-9967.2178767,0.00032075,3]
[310694955,1704647448526,-226.8,0.00032075,7]
[310694956,1704647448536,-226.8,0.00032075,7]
[310694957,1704647448550,-393.146209,0.00032075,7]
[310694958,1704647448560,-393.146209,0.00032075,7]
[310694959,1704647448570,-210.414717,0.00032075,7]
[310694960,1704647448579,-210.414717,0.00032075,7]
[310694961,1704647448590,-1000.0,0.00032126,7]
[310694962,1704647448599,-1000.0,0.00032129,7]
[310694963,1704647448608,-152.0,0.00032133,3]
[310694964,1704647448618,-3000.0,0.0003234,2]
[310694965,1704647448628,-500.0,0.000324,120]
[310694966,1704647448640,-1000.0,0.000325,2]
[310694967,1704647448650,-1024.81,0.00032524,2]
[310694968,1704647448660,-70935.2854196,0.00032553,2]
[310694969,1704647448669,-161.51292248,0.000326,4]
[310694970,1704647448679,-500.0,0.0003263,2]
[310694971,1704647448688,-164.0,0.00032655,2]
[310694972,1704647448698,-500.0,0.0003269,10]
[310694973,1704647448707,-1000.0,0.00032696,7]
[310694974,1704647448716,-2000.0,0.000328,2]
[310694975,1704647448728,-150.0,0.00032851,2]
[310694976,1704647448737,-2141.77,0.00032867,10]
[310694977,1704647448747,-150.0,0.00032876,7]
[310694978,1704647448757,-500.0,0.00032876,7]
[310694979,1704647448766,-500.0,0.00032876,7]
[310694980,1704647448775,-200.0,0.00032876,7]
[310694981,1704647448785,-500.0,0.00032876,7]
[310694982,1704647448794,-340.0,0.00032876,7]
[310694983,1704647448804,-240.0,0.00032876,7]
[310694984,1704647448814,-2440.29,0.00032876,2]
[310694985,1704647448824,-2440.29,0.00032876,2]
[310694986,1704647448833,-2440.29,0.00032876,2]
[310694987,1704647448843,-2440.29,0.00032876,2]
[310694988,1704647448852,-666.0,0.00032876,2]
[310694989,1704647448862,-2440.29,0.00032876,2]
[310694990,1704647448872,-2440.29,0.00032876,2]
[310694991,1704647448882,-2440.29,0.00032876,2]
[310694992,1704647448891,-2440.29,0.00032876,2]
[310694993,1704647448900,-2440.29,0.00032876,2]
[310694994,1704647448910,-293.55,0.00032876,2]
[310694995,1704647448919,-293.55,0.00032876,2]
[310694996,1704647448928,-293.55,0.00032876,2]
[310694997,1704647448938,-293.55,0.00032876,2]
[310694998,1704647448947,-293.55,0.00032876,2]
[310694999,1704647448957,-251.46,0.00032876,2]
[310695000,1704647448966,-153.84,0.00032877,2]
[310695001,1704647448976,-170.77,0.00032877,2]
[310695002,1704647448985,-4000.0,0.00032877,30]
[310695003,1704647448995,-150.0,0.00032877,2]
[310695004,1704647449004,-2500.0,0.00032877,7]
[310695005,1704647449013,-151.0,0.00032877,7]
[310695006,1704647449023,-2364.77,0.00032877,15]
[310695007,1704647449033,-305.7,0.00032877,2]
[310695008,1704647449042,-1500.0,0.00032877,7]
[310695009,1704647449051,-1500.0,0.00032877,7]
[310695010,1704647449060,-155.0,0.00032877,2]
[310695011,1704647449070,-1902.46315614,0.00032896,2]
[310695012,1704647449079,-293.55,0.00032896,2]
[310695013,1704647449089,-1902.46315614,0.00032897,2]
[310695014,1704647449098,-320.01189,0.00032899,7]
[310695015,1704647449108,-320.01189,0.00032899,7]
[310695016,1704647449118,-258.399193,0.00032899,7]
[310695017,1704647449127,-258.399193,0.00032899,7]
[310695018,1704647449136,-441446.4,0.00032899,2]
[310695019,1704647449146,-320.01189,0.00032899,7]
[310695020,1704647449155,-320.01189,0.00032899,7]
[310695021,1704647449165,-258.399193,0.00032899,7]
[310695022,1704647449175,-258.399193,0.00032899,7]
[310695023,1704647449184,-539545.6,0.00032899,2]
[310695024,1704647449194,-201.00214139,0.000329,2]
[310695025,1704647449203,-2000.0,0.000329,2]
[310695026,1704647449212,-1000.0,0.000329,2]
[310695027,1704647449221,-138629.13526,0.000329,2]
[310695028,1704647449231,-300.0,0.000329,2]
[310695029,1704647449241,-3000.0,0.000329,2]
[310695030,1704647449250,-500.0,0.000329,2]
[310695031,1704647449259,-245.287094,0.000329,7]
[310695032,1704647449269,-245.287094,0.000329,7]
[310695033,1704647449278,-151.0,0.000329,7]
[310695034,1704647449288,-400.0,0.000329,12]
[310695035,1704647449297,-300.0,0.000329,12]
[310695036,1704647449307,-3627.0,0.000329,2]
[310695037,1704647449316,-920.70377538,0.000329,2]
[310695038,1704647449326,-6000.0,0.000329,2]
[310695039,1704647449335,-226.8,0.000329,7]
[310695040,1704647449345,-226.8,0.000329,7]
[310695041,1704647449355,-393.146209,0.000329,7]
[310695042,1704647449364,-393.146209,0.000329,7]
[310695043,1704647449375,-210.414717,0.000329,7]
[310695044,1704647449386,-210.414717,0.000329,7]
[310695045,1704647449395,-3000.0,0.0003296,2]
[310695046,1704647449406,-2897.0,0.00032979,2]
[310695047,1704647449415,-2267.0,0.00032979,2]
[310695048,1704647449425,-893.923,0.00032979,2]
[310695049,1704647449434,-1027.0,0.00032979,2]
[310695050,1704647449443,-1902.46315614,0.00032997,2]
[310695051,1704647449453,-122615.1,0.00032998,2]
[310695052,1704647449463,-151.0,0.00032998,7]
[310695053,1704647449474,-149862.9,0.00032998,2]
[310695054,1704647449486,-226.8,0.00032998,7]
[310695055,1704647449495,-226.8,0.00032998,7]
[310695056,1704647449505,-393.146209,0.00032998,7]
[310695057,1704647449518,-393.146209,0.00032998,7]
[310695058,1704647449528,-210.414717,0.00032998,7]
[310695059,1704647449538,-210.414717,0.00032998,7]
[310695060,1704647449550,-151.0,0.00032999,7]
[310695061,1704647449560,-226.8,0.00032999,7]
[310695062,1704647449569,-226.8,0.00032999,7]
[310695063,1704647449581,-393.146209,0.00032999,7]
[310695064,1704647449593,-393.146201,0.00032999,7]
[310695065,1704647449606,-210.414717,0.00032999,7]
[310695066,1704647449615,-210.414725,0.00032999,7]
[310695067,1704647449623,-300.0,0.00032999,2]
[310695068,1704647449633,-2440.29,0.00032999,2]
[310695069,1704647449646,-320.01189,0.00032999,7]
[310695070,1704647449656,-320.01189,0.00032999,7]
[310695071,1704647449665,-258.399193,0.00032999,7]
[310695072,1704647449675,-258.399193,0.00032999,7]
[310695073,1704647449685,-100000.0,0.00033,3]
[310695074,1704647449694,-1658.77813122,0.00033,4]
[310695075,1704647449860,-155.0,0.00033,4]
[310695076,1704647449881,-10000.0,0.00033,2]
[310695077,1704647449891,-16259.39,0.00033,20]
[310695078,1704647449901,-1111.69484099,0.00033,2]
[310695079,1704647449910,-1013.472968,0.00033,5]
[310695080,1704647449919,-221267.35664819,0.00033,2]
[310695081,1704647449929,-82000.0,0.00033,2]
[310695082,1704647449939,-800.0,0.00033,3]
[310695083,1704647449957,-245.287094,0.00033,7]
[310695084,1704647449968,-245.287094,0.00033,7]
[310695085,1704647449977,-151.0,0.00033,7]
[310695086,1704647449986,-1000.0,0.00033,4]
[310695087,1704647449997,-1021.0,0.00033,3]
[310695088,1704647450006,-5677.696877,0.00033,2]
[310695089,1704647450016,-320.01189,0.00033,7]
[310695090,1704647450025,-320.01189,0.00033,7]
[310695091,1704647450035,-320.01189,0.00033,7]
[310695092,1704647450046,-320.01189,0.00033,7]
[310695093,1704647450056,-258.399193,0.00033,7]
[310695094,1704647450066,-258.399193,0.00033,7]
[310695095,1704647450075,-258.399193,0.00033,7]
[310695096,1704647450085,-258.399194,0.00033,7]
[310695097,1704647450095,-500.0,0.00033,3]
[310695098,1704647450105,-432.29,0.00033102,2]
[310695099,1704647450114,-409.57,0.00033112,2]
[310695100,1704647450124,-938.82,0.00033112,2]
[310695101,1704647450136,-250.0,0.00033138,2]
[310695102,1704647450172,-176.0,0.0003315,36]
[310695103,1704647450182,-9967.2178767,0.00033222,5]
[310695104,1704647450191,-150.0,0.00033229,120]
[310695105,1704647450200,-500.0,0.00033238,10]
[310695106,1704647450210,-204.0,0.00033279,12]
[310695107,1704647450220,-150.0,0.00033356,2]
[310695108,1704647450230,-75000.0,0.0003337,15]
[310695109,1704647450240,-500.0,0.000334,120]
[310695110,1704647450250,-160.79524319,0.00033413,6]
[310695111,1704647450259,-2440.29,0.00033499,2]
[310695112,1704647450270,-10885.69909239,0.000335,2]
[310695113,1704647450280,-1400.72,0.000335,2]
[310695114,1704647450290,-1400.72,0.000335,2]
[310695115,1704647450299,-1400.72,0.000335,2]
[310695116,1704647450309,-1400.72,0.000335,2]
[310695117,1704647450319,-1400.72,0.000335,2]
[310695118,1704647450328,-1400.72,0.000335,2]
[310695119,1704647450338,-1400.72,0.000335,2]
[310695120,1704647450349,-1400.72,0.000335,2]
[310695121,1704647450358,-1400.72,0.000335,2]
[310695122,1704647450367,-1400.72,0.000335,2]
[310695123,1704647450376,-1400.72,0.000335,2]
[310695124,1704647450387,-1400.72,0.000335,2]
[310695125,1704647450397,-1400.72,0.000335,2]
[310695126,1704647450406,-1400.72,0.000335,2]
[310695127,1704647450416,-1400.72,0.000335,2]
[310695128,1704647450426,-1400.72,0.000335,2]
[310695129,1704647450435,-1400.72,0.000335,2]
[310695130,1704647450445,-1400.72,0.000335,2]
[310695131,1704647450455,-1400.72,0.000335,2]
[310695132,1704647450464,-1400.72,0.000335,2]
[310695133,1704647450473,-1024.81,0.00033502,2]
[310695134,1704647450482,-313.77,0.00033519,2]
[310695135,1704647450492,-3000.0,0.0003358,2]
[310695136,1704647450501,-150.0,0.00033625,120]
[310695137,1704647450510,-245.287094,0.00033664,7]
[310695138,1704647450520,-245.287094,0.00033664,7]
[310695139,1704647450529,-151.0,0.00033664,7]
[310695140,1704647450539,-732.73659301,0.00033714,6]
[310695141,1704647450550,-5000.0,0.00033721,2]
[310695142,1704647450564,-150.0,0.00033742,2]
[310695143,1704647450573,-150.0,0.00033785,120]
[310695144,1704647450583,-500.0,0.00033786,10]
[310695145,1704647450595,-153.84,0.0003379,2]
[310695146,1704647450605,-2000.0,0.000338,2]
[310695147,1704647450614,-150.0,0.00033836,120]
[310695148,1704647450624,-152.0,0.00033851,4]
[310695149,1704647450636,-313.77,0.00033863,2]
[310695150,1704647450645,-814.88,0.00033863,2]
[310695151,1704647450655,-587.1,0.00033863,2]
[310695152,1704647450665,-184.30965298,0.000339,2]